fUSD/lending_fUSD_20240420
["ID","MTS","AMOUNT","RATE_DAILY","PERIOD"]
[323065071,1713622266432,-983.072,0.00018814,2]
[323065072,1713622266443,-443.0,0.00018814,2]
[323065073,1713622266453,-1140.0,0.00018814,2]
[323065074,1713622266464,-3457.04105606,0.00018863,2]
[323065075,1713622266474,-22864.11790231,0.00018867,2]
[323065076,1713622266485,-500.43562928,0.00018899,2]
[323065077,1713622266495,-363.06367796,0.000189,2]
[323065078,1713622266505,-411.29954752,0.00018904,2]
[323065079,1713622266515,-670.03,0.00018904,2]
[323065080,1713622266526,-571.14,0.00018904,2]
[323065081,1713622266537,-620.85,0.00018904,2]
[323065082,1713622266547,-500.0,0.00018904,2]
[323065083,1713622266558,-500.0,0.00018904,2]
[323065084,1713622266569,-348.94883283,0.00018904,2]
[323065085,1713622266579,-500.0,0.00018904,2]
[323065086,1713622266590,-583.14,0.00018904,2]
[323065087,1713622266601,-684.49,0.00018904,2]
[323065088,1713622266612,-500.0,0.00018904,2]
[323065089,1713622266623,-644.65,0.00018904,2]
[323065090,1713622266636,-942.76,0.00018904,2]
[323065091,1713622266648,-915.54,0.00018904,2]
[323065092,1713622266659,-500.0,0.00018904,2]
[323065093,1713622266669,-500.0,0.00018904,2]
[323065094,1713622266683,-500.0,0.00018904,2]
[323065095,1713622266693,-1227.03,0.00018904,2]
[323065096,1713622266704,-500.0,0.00018904,2]
[323065097,1713622266715,-946.8,0.00018904,2]
[323065098,1713622266726,-500.0,0.00018904,2]
[323065099,1713622266737,-2325.39,0.00018904,2]
[323065100,1713622266748,-648.02,0.00018904,2]
[323065101,1713622266758,-1070.68,0.00018904,2]
[323065102,1713622266769,-500.0,0.00018904,2]
[323065103,1713622266780,-832.42,0.00018904,2]
[323065104,1713622266791,-500.0,0.00018904,2]
[323065105,1713622266802,-935.54,0.00018904,2]
[323065106,1713622266812,-2749.62,0.00018904,2]
[323065107,1713622266823,-500.0,0.00018904,2]
[323065108,1713622266833,-1354.3,0.00018904,2]
[323065109,1713622266843,-1043.16,0.00018904,2]
[323065110,1713622266853,-1060.88,0.00018904,2]
[323065111,1713622266863,-578.84,0.00018904,2]
[323065112,1713622266874,-526.29,0.00018904,2]
[323065113,1713622266884,-500.0,0.00018904,2]
[323065114,1713622266894,-643.29,0.00018904,2]
[323065115,1713622266904,-855.99,0.00018904,2]
[323065116,1713622266915,-2898.56,0.00018904,2]
[323065117,1713622266925,-500.0,0.00018904,2]
[323065118,1713622266935,-469.3020576,0.00018904,2]
[323065119,1713622266946,-160.02081252,0.00018904,2]
[323065120,1713622266957,-500.0,0.00018904,2]
[323065121,1713622266968,-529.35,0.00018904,2]
[323065122,1713622266978,-653.91,0.00018904,2]
[323065123,1713622266988,-741.41,0.00018904,2]
[323065124,1713622266998,-1115.99,0.00018904,2]
[323065125,1713622267009,-1692.18,0.00018904,2]
[323065126,1713622267019,-500.0,0.00018904,2]
[323065127,1713622267031,-945.57,0.00018904,2]
[323065128,1713622267041,-554.63,0.00018904,2]
[323065129,1713622267051,-500.0,0.00018904,2]
[323065130,1713622267062,-500.0,0.00018904,2]
[323065131,1713622267072,-1480.26,0.00018904,2]
[323065132,1713622267082,-500.0,0.00018904,2]
[323065133,1713622267093,-2695.82,0.00018904,2]
[323065134,1713622267103,-1676.22,0.00018904,2]
[323065135,1713622267114,-500.0,0.00018904,2]
[323065136,1713622267125,-2087.98,0.00018904,2]
[323065137,1713622267134,-1793.08,0.00018904,2]
[323065138,1713622267145,-1429.26,0.00018904,2]
[323065139,1713622267156,-500.0,0.00018904,2]
[323065140,1713622267166,-2050.9,0.00018904,2]
[323065141,1713622267179,-1461.93,0.00018904,2]
[323065142,1713622267189,-500.0,0.00018904,2]
[323065143,1713622267201,-574.45050482,0.00019,2]
[323065144,1713622267212,-341.83716422,0.00019,2]
[323065145,1713622267223,-155.0,0.00019,2]
[323065146,1713622267234,-739.73037776,0.00019,2]
[323065147,1713622267245,-150.0,0.00019,2]
[323065148,1713622267255,-352.0,0.00019,2]
[323065149,1713622267266,-1000.0,0.00019,2]
[323065150,1713622267277,-152.0,0.00019018,5]
[323065151,1713622267288,-3457.04105606,0.00019049,2]
[323065152,1713622267298,-493.221028,0.0001908,2]
[323065153,1713622267308,-3341.0,0.000191,2]
[323065154,1713622267317,-1550.31195654,0.00019114,2]
[323065155,1713622267327,-1400.0,0.0001917,2]
[323065156,1713622267337,-670.03,0.00019178,2]
[323065157,1713622267347,-571.14,0.00019178,2]
[323065158,1713622267358,-620.85,0.00019178,2]
[323065159,1713622267368,-500.0,0.00019178,2]
[323065160,1713622267378,-500.0,0.00019178,2]
[323065161,1713622267388,-500.0,0.00019178,2]
[323065162,1713622267398,-583.14,0.00019178,2]
[323065163,1713622267408,-684.49,0.00019178,2]
[323065164,1713622267417,-500.0,0.00019178,2]
[323065165,1713622267429,-942.76,0.00019178,2]
[323065166,1713622267439,-915.54,0.00019178,2]
[323065167,1713622267450,-2000.0,0.00019178,2]
[323065168,1713622267460,-500.0,0.00019178,2]
[323065169,1713622267470,-500.0,0.00019178,2]
[323065170,1713622267480,-297.83847438,0.00019178,2]
[323065171,1713622267490,-500.0,0.00019178,2]
[323065172,1713622267500,-1227.03,0.00019178,2]
[323065173,1713622267510,-500.0,0.00019178,2]
[323065174,1713622267520,-946.8,0.00019178,2]
[323065175,1713622267531,-500.0,0.00019178,2]
[323065176,1713622267541,-2325.39,0.00019178,2]
[323065177,1713622267551,-648.02,0.00019178,2]
[323065178,1713622267560,-1070.68,0.00019178,2]
[323065179,1713622267570,-317.60648602,0.00019178,2]
[323065180,1713622267580,-832.42,0.00019178,2]
[323065181,1713622267590,-325.40204916,0.00019178,2]
[323065182,1713622267599,-935.54,0.00019178,2]
[323065183,1713622267609,-2749.62,0.00019178,2]
[323065184,1713622267619,-500.0,0.00019178,2]
[323065185,1713622267631,-1354.3,0.00019178,2]
[323065186,1713622267643,-1043.16,0.00019178,2]
[323065187,1713622267653,-1060.88,0.00019178,2]
[323065188,1713622267663,-578.84,0.00019178,2]
[323065189,1713622267673,-526.29,0.00019178,2]
[323065190,1713622267685,-500.0,0.00019178,2]
[323065191,1713622267695,-643.29,0.00019178,2]
[323065192,1713622267706,-855.99,0.00019178,2]
[323065193,1713622267716,-163.18208295,0.00019178,2]
[323065194,1713622267726,-2898.56,0.00019178,2]
[323065195,1713622267735,-373.81576582,0.00019178,2]
[323065196,1713622267745,-500.0,0.00019178,2]
[323065197,1713622267755,-529.35,0.00019178,2]
[323065198,1713622267765,-653.91,0.00019178,2]
[323065199,1713622267775,-741.41,0.00019178,2]
[323065200,1713622267786,-1115.99,0.00019178,2]
[323065201,1713622267796,-1692.18,0.00019178,2]
[323065202,1713622267806,-500.0,0.00019178,2]
[323065203,1713622267816,-945.57,0.00019178,2]
[323065204,1713622267826,-554.63,0.00019178,2]
[323065205,1713622267835,-500.0,0.00019178,2]
[323065206,1713622267845,-500.0,0.00019178,2]
[323065207,1713622267855,-1480.26,0.00019178,2]
[323065208,1713622267865,-500.0,0.00019178,2]
[323065209,1713622267875,-2695.82,0.00019178,2]
[323065210,1713622267885,-1676.22,0.00019178,2]
[323065211,1713622267895,-500.0,0.00019178,2]
[323065212,1713622267905,-2087.98,0.00019178,2]
[323065213,1713622267915,-1793.08,0.00019178,2]
[323065214,1713622267926,-350.0,0.00019178,2]
[323065215,1713622267936,-1429.26,0.00019178,2]
[323065216,1713622267946,-500.0,0.00019178,2]
[323065217,1713622267956,-2050.9,0.00019178,2]
[323065218,1713622267965,-1461.93,0.00019178,2]
[323065219,1713622267975,-500.0,0.00019178,2]
[323065220,1713622267984,-200.0,0.00019178,2]
[323065221,1713622267994,-4752.02,0.00019178,2]
[323065222,1713622268004,-3457.04105606,0.00019185,2]
[323065223,1713622268014,-1296.64601032,0.00019186,2]
[323065224,1713622268023,-3607.04,0.000192,2]
[323065225,1713622268033,-2628.53,0.000192,2]
[323065226,1713622268042,-343.78384376,0.00019204,2]
[323065227,1713622268052,-1550.6187919,0.00019264,2]
[323065228,1713622268061,-1550.31195654,0.00019285,2]
[323065229,1713622268071,-1014.38,0.0001938,2]
[323065230,1713622268080,-1000.0,0.00019429,2]
[323065231,1713622268090,-670.03,0.00019452,2]
[323065232,1713622268099,-571.14,0.00019452,2]
[323065233,1713622268108,-620.85,0.00019452,2]
[323065234,1713622268118,-500.0,0.00019452,2]
[323065235,1713622268127,-500.0,0.00019452,2]
[323065236,1713622268137,-500.0,0.00019452,2]
[323065237,1713622268146,-583.14,0.00019452,2]
[323065238,1713622268155,-684.49,0.00019452,2]
[323065239,1713622268165,-500.0,0.00019452,2]
[323065240,1713622268176,-942.76,0.00019452,2]
[323065241,1713622268187,-915.54,0.00019452,2]
[323065242,1713622268196,-500.0,0.00019452,2]
[323065243,1713622268206,-500.0,0.00019452,2]
[323065244,1713622268215,-1227.03,0.00019452,2]
[323065245,1713622268225,-500.0,0.00019452,2]
[323065246,1713622268235,-946.8,0.00019452,2]
[323065247,1713622268244,-500.0,0.00019452,2]
[323065248,1713622268254,-2325.39,0.00019452,2]
[323065249,1713622268264,-648.02,0.00019452,2]
[323065250,1713622268273,-1070.68,0.00019452,2]
[323065251,1713622268283,-832.42,0.00019452,2]
[323065252,1713622268292,-935.54,0.00019452,2]
[323065253,1713622268302,-2749.62,0.00019452,2]
[323065254,1713622268311,-500.0,0.00019452,2]
[323065255,1713622268320,-1354.3,0.00019452,2]
[323065256,1713622268330,-1043.16,0.00019452,2]
[323065257,1713622268339,-1060.88,0.00019452,2]
[323065258,1713622268348,-578.84,0.00019452,2]
[323065259,1713622268358,-526.29,0.00019452,2]
[323065260,1713622268367,-500.0,0.00019452,2]
[323065261,1713622268376,-643.29,0.00019452,2]
[323065262,1713622268386,-855.99,0.00019452,2]
[323065263,1713622268395,-2898.56,0.00019452,2]
[323065264,1713622268405,-628.98176984,0.00019452,2]
[323065265,1713622268414,-529.35,0.00019452,2]
[323065266,1713622268424,-653.91,0.00019452,2]
[323065267,1713622268434,-741.41,0.00019452,2]
[323065268,1713622268444,-1115.99,0.00019452,2]
[323065269,1713622268453,-1692.18,0.00019452,2]
[323065270,1713622268462,-500.0,0.00019452,2]
[323065271,1713622268727,-945.57,0.00019452,2]
[323065272,1713622268740,-554.63,0.00019452,2]
[323065273,1713622268750,-500.0,0.00019452,2]
[323065274,1713622268760,-500.0,0.00019452,2]
[323065275,1713622268769,-1480.26,0.00019452,2]
[323065276,1713622268778,-500.0,0.00019452,2]
[323065277,1713622268788,-2695.82,0.00019452,2]
[323065278,1713622268798,-1676.22,0.00019452,2]
[323065279,1713622268808,-500.0,0.00019452,2]
[323065280,1713622268817,-2087.98,0.00019452,2]
[323065281,1713622268828,-1793.08,0.00019452,2]
[323065282,1713622268838,-1429.26,0.00019452,2]
[323065283,1713622268847,-500.0,0.00019452,2]
[323065284,1713622268857,-2050.9,0.00019452,2]
[323065285,1713622268868,-1461.93,0.00019452,2]
[323065286,1713622268877,-168.38267319,0.00019452,2]
[323065287,1713622268887,-165.379141,0.00019452,2]
[323065288,1713622268896,-150.0,0.000195,2]
[323065289,1713622268906,-1014.38,0.000195,2]
[323065290,1713622268915,-317.06,0.000195,2]
[323065291,1713622268925,-1550.31195654,0.00019508,2]
[323065292,1713622268934,-22864.11790231,0.00019544,2]
[323065293,1713622268943,-152.0,0.00019558,6]
[323065294,1713622268953,-156.09,0.0001956,15]
[323065295,1713622268962,-150.5,0.0001957,15]
[323065296,1713622268972,-150.5,0.0001958,15]
[323065297,1713622268982,-3457.04105606,0.00019607,2]
[323065298,1713622268991,-1296.64601032,0.00019614,2]
[323065299,1713622269001,-1400.0,0.00019718,2]
[323065300,1713622269011,-670.03,0.00019726,2]
[323065301,1713622269021,-571.14,0.00019726,2]
[323065302,1713622269031,-620.85,0.00019726,2]
[323065303,1713622269041,-500.0,0.00019726,2]
[323065304,1713622269050,-500.0,0.00019726,2]
[323065305,1713622269060,-583.14,0.00019726,2]
[323065306,1713622269069,-684.49,0.00019726,2]
[323065307,1713622269079,-256.08765609,0.00019726,2]
[323065308,1713622269089,-942.76,0.00019726,2]
[323065309,1713622269099,-915.54,0.00019726,2]
[323065310,1713622269108,-500.0,0.00019726,2]
[323065311,1713622269118,-500.0,0.00019726,2]
[323065312,1713622269127,-1227.03,0.00019726,2]
[323065313,1713622269137,-500.0,0.00019726,2]
[323065314,1713622269146,-946.8,0.00019726,2]
[323065315,1713622269155,-151.32869646,0.00019726,2]
[323065316,1713622269165,-2325.39,0.00019726,2]
[323065317,1713622269174,-648.02,0.00019726,2]
[323065318,1713622269184,-1070.68,0.00019726,2]
[323065319,1713622269194,-832.42,0.00019726,2]
[323065320,1713622269203,-935.54,0.00019726,2]
[323065321,1713622269213,-2749.62,0.00019726,2]
[323065322,1713622269222,-500.0,0.00019726,2]
[323065323,1713622269231,-1354.3,0.00019726,2]
[323065324,1713622269240,-1043.16,0.00019726,2]
[323065325,1713622269250,-1060.88,0.00019726,2]
[323065326,1713622269259,-578.84,0.00019726,2]
[323065327,1713622269269,-526.29,0.00019726,2]
[323065328,1713622269278,-500.0,0.00019726,2]
[323065329,1713622269287,-643.29,0.00019726,2]
[323065330,1713622269296,-855.99,0.00019726,2]
[323065331,1713622269306,-2898.56,0.00019726,2]
[323065332,1713622269315,-529.35,0.00019726,2]
[323065333,1713622269326,-653.91,0.00019726,2]
[323065334,1713622269336,-741.41,0.00019726,2]
[323065335,1713622269345,-1115.99,0.00019726,2]
[323065336,1713622269354,-1692.18,0.00019726,2]
[323065337,1713622269364,-500.0,0.00019726,2]
[323065338,1713622269373,-945.57,0.00019726,2]
[323065339,1713622269383,-554.63,0.00019726,2]
[323065340,1713622269393,-500.0,0.00019726,2]
[323065341,1713622269403,-500.0,0.00019726,2]
[323065342,1713622269412,-1480.26,0.00019726,2]
[323065343,1713622269422,-500.0,0.00019726,2]
[323065344,1713622269434,-2695.82,0.00019726,2]
[323065345,1713622269443,-1676.22,0.00019726,2]
[323065346,1713622269453,-500.0,0.00019726,2]
[323065347,1713622269463,-2087.98,0.00019726,2]
[323065348,1713622269472,-1793.08,0.00019726,2]
[323065349,1713622269482,-1429.26,0.00019726,2]
[323065350,1713622269492,-500.0,0.00019726,2]
[323065351,1713622269501,-2050.9,0.00019726,2]
[323065352,1713622269511,-1461.93,0.00019726,2]
[323065353,1713622269520,-1000.0,0.00019726,2]
[323065354,1713622269529,-1550.31195654,0.00019762,2]
[323065355,1713622269538,-1550.6187919,0.00019809,2]
[323065356,1713622269547,-3457.04105606,0.0001986,2]
[323065357,1713622269557,-12307.56140714,0.00019896,2]
[323065358,1713622269567,-500.0,0.00019899,2]
[323065359,1713622269576,-156.15926377,0.00019998,2]
[323065360,1713622269585,-191.5839202,0.0002,2]
[323065361,1713622269594,-311.42022066,0.0002,2]
[323065362,1713622269603,-2413.09779345,0.0002,2]
[323065363,1713622269613,-169.23748471,0.0002,2]
[323065364,1713622269623,-351.85798617,0.0002,2]
[323065365,1713622269634,-2970.21292753,0.0002,2]
[323065366,1713622269645,-21494.43389109,0.0002,2]
[323065367,1713622269655,-155.0,0.0002,2]
[323065368,1713622269665,-5681.222191,0.0002,5]
[323065369,1713622269674,-3390.39378019,0.0002,2]
[323065370,1713622269685,-643.09680533,0.0002,2]
[323065371,1713622269695,-2216.34749674,0.0002,2]
[323065372,1713622269705,-5888.10530985,0.0002,2]
[323065373,1713622269716,-69798.43954889,0.0002,2]
[323065374,1713622269728,-965.0,0.0002,2]
[323065375,1713622269738,-150.0,0.0002,2]
[323065376,1713622269748,-1066.0,0.0002,2]
[323065377,1713622269757,-670.03,0.0002,2]
[323065378,1713622269767,-500.0,0.0002,2]
[323065379,1713622269777,-188.0,0.0002,2]
[323065380,1713622269786,-200.0,0.0002,2]
[323065381,1713622269795,-176.0,0.0002,2]
[323065382,1713622269805,-571.14,0.0002,2]
[323065383,1713622269815,-620.85,0.0002,2]
[323065384,1713622269825,-329.02165831,0.0002,2]
[323065385,1713622269834,-238.61898992,0.0002,2]
[323065386,1713622269844,-583.14,0.0002,2]
[323065387,1713622269853,-684.49,0.0002,2]
[323065388,1713622269863,-942.76,0.0002,2]
[323065389,1713622269873,-2000.0,0.0002,2]
[323065390,1713622269882,-915.54,0.0002,2]
[323065391,1713622269892,-500.0,0.0002,2]
[323065392,1713622269902,-500.0,0.0002,2]
[323065393,1713622269912,-1227.03,0.0002,2]
[323065394,1713622269922,-307.61219281,0.0002,2]
[323065395,1713622269933,-946.8,0.0002,2]
[323065396,1713622269944,-2325.39,0.0002,2]
[323065397,1713622269955,-2000.0,0.0002,2]
[323065398,1713622269964,-648.02,0.0002,2]
[323065399,1713622269974,-1070.68,0.0002,2]
[323065400,1713622269983,-832.42,0.0002,2]
[323065401,1713622269993,-935.54,0.0002,2]
[323065402,1713622270003,-150.0,0.0002,2]
[323065403,1713622270012,-2749.62,0.0002,2]
[323065404,1713622270022,-230.50213445,0.0002,2]
[323065405,1713622270031,-1354.3,0.0002,2]
[323065406,1713622270041,-1043.16,0.0002,2]
[323065407,1713622270051,-1060.88,0.0002,2]
[323065408,1713622270061,-578.84,0.0002,2]
[323065409,1713622270070,-526.29,0.0002,2]
[323065410,1713622270079,-321.09571403,0.0002,2]
[323065411,1713622270090,-2400.0,0.0002,2]
[323065412,1713622270099,-643.29,0.0002,2]
[323065413,1713622270109,-855.99,0.0002,2]
[323065414,1713622270119,-2898.56,0.0002,2]
[323065415,1713622270128,-529.35,0.0002,2]
[323065416,1713622270138,-653.91,0.0002,2]
[323065417,1713622270148,-741.41,0.0002,2]
[323065418,1713622270157,-1115.99,0.0002,2]
[323065419,1713622270167,-1692.18,0.0002,2]
[323065420,1713622270177,-500.0,0.0002,2]
[323065421,1713622270186,-275.5,0.0002,2]
[323065422,1713622270196,-945.57,0.0002,2]
[323065423,1713622270205,-554.63,0.0002,2]
[323065424,1713622270215,-500.10774652,0.0002,2]
[323065425,1713622270225,-500.0,0.0002,2]
[323065426,1713622270236,-1480.26,0.0002,2]
[323065427,1713622270246,-71458.48,0.0002,3]
[323065428,1713622270255,-500.0,0.0002,2]
[323065429,1713622270266,-2806.0,0.0002,2]
[323065430,1713622270276,-667539.0,0.0002,2]
[323065431,1713622270286,-2695.82,0.0002,2]
[323065432,1713622270295,-1676.22,0.0002,2]
[323065433,1713622270305,-500.0,0.0002,2]
[323065434,1713622270315,-2087.98,0.0002,2]
[323065435,1713622270325,-6514.0,0.0002,2]
[323065436,1713622270335,-1793.08,0.0002,2]
[323065437,1713622270345,-2700.0,0.0002,2]
[323065438,1713622270355,-1352.16,0.0002,3]
[323065439,1713622270366,-1762.0,0.0002,2]
[323065440,1713622270376,-721.94857637,0.0002,2]
[323065441,1713622270385,-721.94857637,0.0002,2]
[323065442,1713622270395,-721.94857637,0.0002,2]
[323065443,1713622270405,-721.94857637,0.0002,2]
[323065444,1713622270414,-721.94857637,0.0002,2]
[323065445,1713622270423,-721.94857637,0.0002,2]
[323065446,1713622270434,-721.94857637,0.0002,2]
[323065447,1713622270444,-721.94857637,0.0002,2]
[323065448,1713622270454,-721.94857637,0.0002,2]
[323065449,1713622270463,-721.94857637,0.0002,2]
[323065450,1713622270473,-721.94857637,0.0002,2]
[323065451,1713622270483,-721.94857637,0.0002,2]
[323065452,1713622270493,-721.94857637,0.0002,2]
[323065453,1713622270503,-1429.26,0.0002,2]
[323065454,1713622270512,-721.94857637,0.0002,2]
[323065455,1713622270523,-721.94857637,0.0002,2]
[323065456,1713622270533,-721.94857637,0.0002,2]
[323065457,1713622270545,-721.94857637,0.0002,2]
[323065458,1713622270556,-721.94857637,0.0002,2]
[323065459,1713622270567,-721.94857637,0.0002,2]
[323065460,1713622270578,-721.94857637,0.0002,2]
[323065461,1713622270588,-721.94857637,0.0002,2]
[323065462,1713622270598,-500.0,0.0002,2]
[323065463,1713622270609,-721.94857637,0.0002,2]
[323065464,1713622270619,-721.94857637,0.0002,2]
[323065465,1713622270629,-721.94857637,0.0002,2]
[323065466,1713622270645,-721.94857637,0.0002,2]
[323065467,1713622270655,-721.94857637,0.0002,2]
[323065468,1713622270665,-721.94857637,0.0002,2]
[323065469,1713622270674,-721.94857637,0.0002,2]
[323065470,1713622270684,-721.94857637,0.0002,2]
[323065471,1713622270693,-721.94857637,0.0002,2]
[323065472,1713622270703,-721.94857637,0.0002,2]
[323065473,1713622270714,-2561.0,0.0002,2]
[323065474,1713622270723,-721.94857637,0.0002,2]
[323065475,1713622270733,-721.94857637,0.0002,2]
[323065476,1713622270744,-721.94857637,0.0002,2]
[323065477,1713622270754,-721.94857637,0.0002,2]
[323065478,1713622270764,-721.94857637,0.0002,2]
[323065479,1713622270774,-721.94857637,0.0002,2]
[323065480,1713622270783,-721.94857637,0.0002,2]
[323065481,1713622270793,-721.94857637,0.0002,2]
[323065482,1713622270802,-721.94857637,0.0002,2]
[323065483,1713622270812,-721.94857637,0.0002,2]
[323065484,1713622270822,-721.94857637,0.0002,2]
[323065485,1713622270832,-721.94857637,0.0002,2]
[323065486,1713622270842,-721.94857637,0.0002,2]
[323065487,1713622270854,-721.94857637,0.0002,2]
[323065488,1713622270863,-721.94857637,0.0002,2]
[323065489,1713622270873,-721.94857637,0.0002,2]
[323065490,1713622270883,-721.94857637,0.0002,2]
[323065491,1713622270893,-721.94857637,0.0002,2]
[323065492,1713622270903,-721.94857637,0.0002,2]
[323065493,1713622270913,-2050.9,0.0002,2]
[323065494,1713622270923,-1461.93,0.0002,2]
[323065495,1713622270934,-2000.0,0.0002001,2]
[323065496,1713622270944,-2000.0,0.0002002,2]
[323065497,1713622270954,-363.06367792,0.00020025,2]
[323065498,1713622270967,-2000.0,0.0002003,2]
[323065499,1713622270977,-2000.0,0.0002004,2]
[323065500,1713622270990,-1296.64601032,0.00020043,2]
[323065501,1713622271001,-2000.0,0.0002005,2]
[323065502,1713622271011,-343.78384376,0.00020052,2]
[323065503,1713622271021,-2000.0,0.0002006,2]
[323065504,1713622271030,-3109.123637,0.0002007,2]
[323065505,1713622271040,-7600.0,0.0002009,2]
[323065506,1713622271050,-152.0,0.00020097,7]
[323065507,1713622271124,-1550.31195654,0.00020131,2]
[323065508,1713622271134,-200.17,0.00020212,2]
[323065509,1713622271143,-22864.11790231,0.00020222,2]
[323065510,1713622271152,-3457.04105606,0.00020224,2]
[323065511,1713622271161,-1014.38,0.00020225,2]
[323065512,1713622271170,-1400.0,0.00020266,2]
[323065513,1713622271181,-670.03,0.00020273,2]
[323065514,1713622271190,-571.14,0.00020273,2]
[323065515,1713622271199,-620.85,0.00020273,2]
[323065516,1713622271208,-583.14,0.00020273,2]
[323065517,1713622271217,-684.49,0.00020273,2]
[323065518,1713622271226,-942.76,0.00020273,2]
[323065519,1713622271237,-915.54,0.00020273,2]
[323065520,1713622271246,-500.0,0.00020273,2]
[323065521,1713622271255,-500.0,0.00020273,2]
[323065522,1713622271265,-1227.03,0.00020273,2]
[323065523,1713622271274,-946.8,0.00020273,2]
[323065524,1713622271284,-2325.39,0.00020273,2]
[323065525,1713622271293,-648.02,0.00020273,2]
[323065526,1713622271302,-1070.68,0.00020273,2]
[323065527,1713622271313,-832.42,0.00020273,2]
[323065528,1713622271322,-935.54,0.00020273,2]
[323065529,1713622271331,-2749.62,0.00020273,2]
[323065530,1713622271340,-1354.3,0.00020273,2]
[323065531,1713622271350,-1043.16,0.00020273,2]
[323065532,1713622271359,-1060.88,0.00020273,2]
[323065533,1713622271369,-578.84,0.00020273,2]
[323065534,1713622271378,-526.29,0.00020273,2]
[323065535,1713622271387,-643.29,0.00020273,2]
[323065536,1713622271396,-855.99,0.00020273,2]
[323065537,1713622271405,-2898.56,0.00020273,2]
[323065538,1713622271415,-529.35,0.00020273,2]
[323065539,1713622271424,-653.91,0.00020273,2]
[323065540,1713622271435,-741.41,0.00020273,2]
[323065541,1713622271444,-1115.99,0.00020273,2]
[323065542,1713622271453,-1692.18,0.00020273,2]
[323065543,1713622271462,-500.0,0.00020273,2]
[323065544,1713622271473,-945.57,0.00020273,2]
[323065545,1713622271482,-554.63,0.00020273,2]
[323065546,1713622271493,-500.0,0.00020273,2]
[323065547,1713622271504,-1480.26,0.00020273,2]
[323065548,1713622271513,-500.0,0.00020273,2]
[323065549,1713622271521,-2695.82,0.00020273,2]
[323065550,1713622271531,-1676.22,0.00020273,2]
[323065551,1713622271540,-500.0,0.00020273,2]
[323065552,1713622271550,-2087.98,0.00020273,2]
[323065553,1713622271562,-1793.08,0.00020273,2]
[323065554,1713622271571,-1429.26,0.00020273,2]
[323065555,1713622271580,-500.0,0.00020273,2]
[323065556,1713622271589,-2050.9,0.00020273,2]
[323065557,1713622271599,-1461.93,0.00020273,2]
[323065558,1713622271609,-165.379141,0.00020274,2]
[323065559,1713622271619,-154.98058798,0.0002029,2]
[323065560,1713622271629,-154.22655182,0.00020295,2]
[323065561,1713622271644,-2628.53,0.000203,2]
[323065562,1713622271653,-1550.31195654,0.00020331,2]
[323065563,1713622271664,-1014.38,0.00020345,2]
[323065564,1713622271674,-1550.6187919,0.00020355,2]
[323065565,1713622271685,-2567.01204979,0.00020366,2]
[323065566,1713622271694,-531.71255745,0.00020371,2]
[323065567,1713622271703,-3607.04,0.000204,2]
[323065568,1713622271714,-185.98733799,0.00020406,2]
[323065569,1713622271724,-204.26455975,0.00020409,2]
[323065570,1713622271733,-150.0,0.0002042,2]